[Event "*** Titled Tuesday Blitz"]
[Site "Chess.com"]
[Date "2021.02.09"]
[Round "5"]
[White "MatthewG-p4p"]
[Black "Fighter008"]
[Result "1-0"]
[WhiteElo "2823"]
[BlackElo "2584"]
[TimeControl "180+1"]
[EndTime "10:57:16 PST"]
[Termination "MatthewG-p4p won by resignation"]

1. f4 {[%clk 0:02:57.6]} 1... d6 {[%clk 0:02:58.6]} 2. Nf3 {[%clk 0:02:57.1]}
2... g6 {[%clk 0:02:58.4]} 3. g3 {[%clk 0:02:56.8]} 3... Bg7 {[%clk 0:02:57.3]}
4. d3 {[%clk 0:02:57.1]} 4... e5 {[%clk 0:02:55.9]} 5. Nc3 {[%clk 0:02:57.2]}
5... Nc6 {[%clk 0:02:55.1]} 6. Bg2 {[%clk 0:02:57]} 6... Nge7 {[%clk 0:02:53.9]}
7. O-O {[%clk 0:02:55.1]} 7... O-O {[%clk 0:02:53.4]} 8. e4 {[%clk 0:02:55.8]}
8... f5 {[%clk 0:02:52.5]} 9. fxe5 {[%clk 0:02:53.7]} 9... dxe5 {[%clk
0:02:50.9]} 10. exf5 {[%clk 0:02:49.5]} 10... gxf5 {[%clk 0:02:49.8]} 11. Bg5
{[%clk 0:02:47.7]} 11... h6 {[%clk 0:02:48.8]} 12. Be3 {[%clk 0:02:45.4]} 12...
Ng6 {[%clk 0:02:41.7]} 13. Qd2 {[%clk 0:02:36.7]} 13... f4 {[%clk 0:02:34.9]}
14. Bc5 {[%clk 0:02:30.6]} 14... Rf7 {[%clk 0:02:23.4]} 15. Rae1 {[%clk
0:02:26.2]} 15... Bg4 {[%clk 0:02:19.9]} 16. Kh1 {[%clk 0:02:07.7]} 16... Qd7
{[%clk 0:02:17]} 17. Ng1 {[%clk 0:01:57.8]} 17... Re8 {[%clk 0:02:06.4]} 18. Be4
{[%clk 0:01:51.2]} 18... Bf5 {[%clk 0:02:02.6]} 19. Qg2 {[%clk 0:01:49.6]} 19...
Kh8 {[%clk 0:01:52.9]} 20. Rf2 {[%clk 0:01:27]} 20... Nd8 {[%clk 0:01:20.3]} 21.
Ref1 {[%clk 0:01:10.2]} 21... b6 {[%clk 0:01:18.4]} 22. Be3 {[%clk 0:00:45]}
22... Rg8 {[%clk 0:01:12]} 23. Bd2 {[%clk 0:00:40.7]} 23... Bf8 {[%clk
0:01:06.8]} 24. Bxf5 {[%clk 0:00:40.9]} 24... Qxf5 {[%clk 0:01:03.7]} 25. Qe4
{[%clk 0:00:41]} 25... Bc5 {[%clk 0:00:59.9]} 26. Qxf5 {[%clk 0:00:35.5]} 26...
Rxf5 {[%clk 0:00:59.4]} 27. Rg2 {[%clk 0:00:36.4]} 27... Ne6 {[%clk 0:00:53.2]}
28. Ne4 {[%clk 0:00:33.6]} 28... Be7 {[%clk 0:00:42.7]} 29. g4 {[%clk 0:00:31]}
29... Rf7 {[%clk 0:00:40.9]} 30. Nf3 {[%clk 0:00:30.1]} 30... Kh7 {[%clk
0:00:40.2]} 31. Bc3 {[%clk 0:00:29]} 31... Bd6 {[%clk 0:00:40]} 32. Re1 {[%clk
0:00:25.4]} 32... Nef8 {[%clk 0:00:32.1]} 33. g5 {[%clk 0:00:23.5]} 33... Nd7
{[%clk 0:00:31.9]} 34. gxh6 {[%clk 0:00:22.1]} 34... Kxh6 {[%clk 0:00:31.8]} 35.
Reg1 {[%clk 0:00:19.2]} 35... Rfg7 {[%clk 0:00:24.3]} 36. Nfg5 {[%clk
0:00:18.2]} 36... Ngf8 {[%clk 0:00:15.3]} 37. Nf7+ {[%clk 0:00:16.9]} 37... Kh5
{[%clk 0:00:15.1]} 38. Rxg7 {[%clk 0:00:16.8]} 1-0

[Event "*** Titled Tuesday Blitz"]
[Site "Chess.com"]
[Date "2021.02.09"]
[Round "5"]
[White "Ekose"]
[Black "TimofeevAr"]
[Result "0-1"]
[WhiteElo "2605"]
[BlackElo "2864"]
[TimeControl "180+1"]
[EndTime "10:57:17 PST"]
[Termination "TimofeevAr won by resignation"]

1. d4 {[%clk 0:02:46.6]} 1... Nf6 {[%clk 0:02:59.2]} 2. Nf3 {[%clk 0:02:44.8]}
2... g6 {[%clk 0:02:59.1]} 3. Bg5 {[%clk 0:02:44.1]} 3... Bg7 {[%clk 0:02:59]}
4. Nbd2 {[%clk 0:02:44.2]} 4... h6 {[%clk 0:02:58.4]} 5. Bh4 {[%clk 0:02:40.7]}
5... d6 {[%clk 0:02:54.8]} 6. c3 {[%clk 0:02:41]} 6... O-O {[%clk 0:02:54.1]} 7.
e4 {[%clk 0:02:40.6]} 7... Nc6 {[%clk 0:02:54.2]} 8. Bb5 {[%clk 0:02:39.9]} 8...
a6 {[%clk 0:02:52.7]} 9. Bxc6 {[%clk 0:02:23.5]} 9... bxc6 {[%clk 0:02:52.6]}
10. O-O {[%clk 0:02:24]} 10... a5 {[%clk 0:02:52.6]} 11. Re1 {[%clk 0:02:19]}
11... g5 {[%clk 0:02:42.1]} 12. Bg3 {[%clk 0:02:18.8]} 12... a4 {[%clk
0:02:42.1]} 13. b3 {[%clk 0:02:12.8]} 13... Nh5 {[%clk 0:02:35.8]} 14. bxa4
{[%clk 0:01:58]} 14... Nxg3 {[%clk 0:02:34.4]} 15. hxg3 {[%clk 0:01:58.9]} 15...
Bd7 {[%clk 0:02:34.7]} 16. Nb3 {[%clk 0:01:57.2]} 16... c5 {[%clk 0:02:30.3]}
17. e5 {[%clk 0:01:36]} 17... Bxa4 {[%clk 0:02:20.7]} 18. dxc5 {[%clk
0:01:33.8]} 18... dxe5 {[%clk 0:02:20.6]} 19. Qxd8 {[%clk 0:01:31.9]} 19...
Rfxd8 {[%clk 0:02:19.8]} 20. Rad1 {[%clk 0:01:12.6]} 20... Rxd1 {[%clk
0:02:06.9]} 21. Rxd1 {[%clk 0:01:11.4]} 21... Bc6 {[%clk 0:02:06.9]} 22. Rd2
{[%clk 0:01:04]} 22... e6 {[%clk 0:02:01.7]} 23. Re2 {[%clk 0:01:00.4]} 23... f6
{[%clk 0:01:57.2]} 24. Rb2 {[%clk 0:00:52.7]} 24... f5 {[%clk 0:01:34.2]} 25.
Re2 {[%clk 0:00:50.8]} 25... e4 {[%clk 0:01:34.3]} 26. Nfd4 {[%clk 0:00:51.4]}
26... Bd5 {[%clk 0:01:34.7]} 27. Rc2 {[%clk 0:00:45.2]} 27... Bc4 {[%clk
0:01:31]} 28. Nd2 {[%clk 0:00:42.8]} 28... Bxa2 {[%clk 0:01:21.3]} 29. Nb5
{[%clk 0:00:39.1]} 29... Bd5 {[%clk 0:01:00.2]} 30. Nxc7 {[%clk 0:00:36.1]}
30... Ra1+ {[%clk 0:01:00.2]} 31. Kh2 {[%clk 0:00:36.3]} 31... f4 {[%clk
0:00:55.2]} 32. c4 {[%clk 0:00:32.7]} 32... Bc6 {[%clk 0:00:52.9]} 33. Nxe6
{[%clk 0:00:32.5]} 33... e3 {[%clk 0:00:49.4]} 34. fxe3 {[%clk 0:00:25.4]} 34...
fxe3 {[%clk 0:00:44.7]} 35. Nf3 {[%clk 0:00:25.2]} 35... Rd1 {[%clk 0:00:23.2]}
36. Re2 {[%clk 0:00:20.6]} 36... Bxf3 {[%clk 0:00:22.3]} 37. gxf3 {[%clk
0:00:20.3]} 37... Rd2 {[%clk 0:00:22.6]} 38. Rg2 {[%clk 0:00:19.8]} 38... e2
{[%clk 0:00:21.7]} 0-1

[Event "*** Titled Tuesday Blitz"]
[Site "Chess.com"]
[Date "2021.02.09"]
[Round "5"]
[White "Willychess95"]
[Black "Chessbard1972"]
[Result "1-0"]
[WhiteElo "2617"]
[BlackElo "2404"]
[TimeControl "180+1"]
[EndTime "10:57:17 PST"]
[Termination "Willychess95 won by checkmate"]

1. e4 {[%clk 0:02:51.4]} 1... c5 {[%clk 0:02:58.3]} 2. Nf3 {[%clk 0:02:51.5]}
2... a6 {[%clk 0:02:58.3]} 3. c4 {[%clk 0:02:50.1]} 3... e6 {[%clk 0:02:57.4]}
4. Nc3 {[%clk 0:02:50.2]} 4... Qc7 {[%clk 0:02:57.2]} 5. g3 {[%clk 0:02:49.4]}
5... Nc6 {[%clk 0:02:55.9]} 6. Bg2 {[%clk 0:02:49.3]} 6... g6 {[%clk 0:02:55.4]}
7. d3 {[%clk 0:02:49.1]} 7... Bg7 {[%clk 0:02:55.3]} 8. h4 {[%clk 0:02:48.1]}
8... h5 {[%clk 0:02:54.2]} 9. O-O {[%clk 0:02:45.4]} 9... Nf6 {[%clk 0:02:51]}
10. Re1 {[%clk 0:02:43.1]} 10... Ng4 {[%clk 0:02:50.3]} 11. Rb1 {[%clk
0:02:35.3]} 11... O-O {[%clk 0:02:44.9]} 12. Bf4 {[%clk 0:02:29]} 12... d6
{[%clk 0:02:43.4]} 13. Ne2 {[%clk 0:02:15.2]} 13... b5 {[%clk 0:02:38.1]} 14. b3
{[%clk 0:02:14.7]} 14... Bb7 {[%clk 0:02:35.5]} 15. Nh2 {[%clk 0:02:08.1]} 15...
Nge5 {[%clk 0:02:28.9]} 16. Be3 {[%clk 0:02:01.5]} 16... Nd7 {[%clk 0:02:17.1]}
17. f4 {[%clk 0:01:59.4]} 17... f5 {[%clk 0:02:13.6]} 18. Nf3 {[%clk 0:01:57.2]}
18... Nf6 {[%clk 0:02:09.2]} 19. Ng5 {[%clk 0:01:56]} 19... Rae8 {[%clk
0:02:08.5]} 20. Nc3 {[%clk 0:01:45.1]} 20... Ng4 {[%clk 0:02:06.9]} 21. Qd2
{[%clk 0:01:21]} 21... Nxe3 {[%clk 0:02:06]} 22. Rxe3 {[%clk 0:01:21.9]} 22...
Bd4 {[%clk 0:02:05.1]} 23. Kh2 {[%clk 0:01:22.5]} 23... Bxe3 {[%clk 0:02:04.1]}
24. Qxe3 {[%clk 0:01:23.4]} 24... Nd4 {[%clk 0:02:00.7]} 25. Ne2 {[%clk
0:01:22.2]} 25... Qg7 {[%clk 0:01:58.1]} 26. e5 {[%clk 0:01:07]} 26... Bxg2
{[%clk 0:01:55.2]} 27. Kxg2 {[%clk 0:01:07.9]} 27... Qb7+ {[%clk 0:01:53.3]} 28.
Kh2 {[%clk 0:01:05.3]} 28... Nxe2 {[%clk 0:01:46.8]} 29. Qxe2 {[%clk 0:01:06.2]}
29... d5 {[%clk 0:01:44.3]} 30. Rc1 {[%clk 0:00:55.5]} 30... bxc4 {[%clk
0:01:40.1]} 31. dxc4 {[%clk 0:00:54]} 31... d4 {[%clk 0:01:40]} 32. Nf3 {[%clk
0:00:50]} 32... Qe4 {[%clk 0:01:37.1]} 33. Qf1 {[%clk 0:00:45.8]} 33... Re7
{[%clk 0:01:22.9]} 34. Ne1 {[%clk 0:00:42.2]} 34... d3 {[%clk 0:01:17.7]} 35.
Nxd3 {[%clk 0:00:35.6]} 35... Rd8 {[%clk 0:01:14.7]} 36. Nxc5 {[%clk 0:00:34.9]}
36... Rd2+ {[%clk 0:01:14]} 37. Kh3 {[%clk 0:00:35.4]} 37... Qd4 {[%clk
0:01:05.2]} 38. b4 {[%clk 0:00:35.6]} 38... a5 {[%clk 0:01:00.4]} 39. Nb3 {[%clk
0:00:34.5]} 39... Qb2 {[%clk 0:00:52.7]} 40. Nxd2 {[%clk 0:00:34.6]} 40... Qxd2
{[%clk 0:00:52.9]} 41. bxa5 {[%clk 0:00:33.7]} 41... Rd7 {[%clk 0:00:49.2]} 42.
c5 {[%clk 0:00:33.1]} 42... Rd3 {[%clk 0:00:37.2]} 43. c6 {[%clk 0:00:25.8]}
43... Qe3 {[%clk 0:00:36.7]} 44. Qxd3 {[%clk 0:00:25.4]} 44... Qxd3 {[%clk
0:00:35.4]} 45. c7 {[%clk 0:00:25.3]} 45... Qe2 {[%clk 0:00:26.9]} 46. c8=Q+
{[%clk 0:00:26.2]} 46... Kg7 {[%clk 0:00:24.9]} 47. Rc7+ {[%clk 0:00:26]} 47...
Kh6 {[%clk 0:00:24.9]} 48. Qh8# {[%clk 0:00:25.5]} 1-0

[Event "*** Titled Tuesday Blitz"]
[Site "Chess.com"]
[Date "2021.02.09"]
[Round "5"]
[White "volunteers1998"]
[Black "Taran2004"]
[Result "0-1"]
[WhiteElo "2064"]
[BlackElo "2458"]
[TimeControl "180+1"]
[EndTime "10:57:19 PST"]
[Termination "Taran2004 won by resignation"]

1. e4 {[%clk 0:03:00.9]} 1... c5 {[%clk 0:02:59.5]} 2. Nf3 {[%clk 0:03:00.8]}
2... d6 {[%clk 0:02:59.5]} 3. d4 {[%clk 0:02:59.1]} 3... cxd4 {[%clk 0:03:00.4]}
4. Nxd4 {[%clk 0:02:57.1]} 4... Nf6 {[%clk 0:03:00.6]} 5. Nc3 {[%clk 0:02:53.5]}
5... a6 {[%clk 0:02:59.4]} 6. Be3 {[%clk 0:02:50.2]} 6... e5 {[%clk 0:02:58.5]}
7. Nb3 {[%clk 0:02:48.8]} 7... Be7 {[%clk 0:02:58.3]} 8. f3 {[%clk 0:02:45.3]}
8... Be6 {[%clk 0:02:57.5]} 9. Qd2 {[%clk 0:02:42.2]} 9... Nbd7 {[%clk
0:02:57.4]} 10. g4 {[%clk 0:02:38]} 10... b5 {[%clk 0:02:54.4]} 11. g5 {[%clk
0:02:33.5]} 11... Nh5 {[%clk 0:02:52.7]} 12. O-O-O {[%clk 0:02:29.9]} 12... Nb6
{[%clk 0:02:51.3]} 13. Kb1 {[%clk 0:02:27.5]} 13... Nc4 {[%clk 0:02:50.5]} 14.
Bxc4 {[%clk 0:02:23.9]} 14... bxc4 {[%clk 0:02:51.4]} 15. Nc1 {[%clk 0:02:20.1]}
15... O-O {[%clk 0:02:43.7]} 16. Nd5 {[%clk 0:02:15]} 16... Bxd5 {[%clk
0:02:41.6]} 17. Qxd5 {[%clk 0:02:14.1]} 17... Qc7 {[%clk 0:02:41.3]} 18. Ne2
{[%clk 0:02:10]} 18... Rab8 {[%clk 0:02:37.1]} 19. Nc3 {[%clk 0:02:07.6]} 19...
Rb4 {[%clk 0:02:26.1]} 20. h4 {[%clk 0:01:58.9]} 20... Rfb8 {[%clk 0:02:25.4]}
21. Bc1 {[%clk 0:01:53.7]} 21... Nf4 {[%clk 0:02:21]} 22. Qd2 {[%clk 0:01:51.8]}
22... Qb6 {[%clk 0:01:55.8]} 23. b3 {[%clk 0:01:42.4]} 23... a5 {[%clk
0:01:50.2]} 24. Nd5 {[%clk 0:01:09.1]} 24... Nxd5 {[%clk 0:01:45.5]} 25. Qxd5
{[%clk 0:01:08.9]} 25... a4 {[%clk 0:01:42]} 26. Bb2 {[%clk 0:01:01.6]} 26...
axb3 {[%clk 0:01:38.6]} 27. cxb3 {[%clk 0:00:59.1]} 27... cxb3 {[%clk
0:01:36.4]} 28. a3 {[%clk 0:00:57.2]} 28... Rb5 {[%clk 0:01:36.6]} 29. Qd3
{[%clk 0:00:53.2]} 29... Ra8 {[%clk 0:01:26]} 30. Rd2 {[%clk 0:00:43.9]} 30...
Qb7 {[%clk 0:01:15.6]} 31. Rc1 {[%clk 0:00:40.6]} 31... d5 {[%clk 0:01:07.2]}
32. exd5 {[%clk 0:00:37.6]} 32... Bd6 {[%clk 0:00:56.5]} 33. Rc6 {[%clk
0:00:26.6]} 33... Rb6 {[%clk 0:00:45]} 34. Rxb6 {[%clk 0:00:23.7]} 34... Qxb6
{[%clk 0:00:45.9]} 35. Rd1 {[%clk 0:00:19.9]} 35... g6 {[%clk 0:00:44.9]} 36.
Rc1 {[%clk 0:00:17.8]} 36... Bxa3 {[%clk 0:00:41.3]} 37. Bxa3 {[%clk 0:00:12.5]}
37... Rxa3 {[%clk 0:00:42.2]} 38. Qc3 {[%clk 0:00:09.4]} 38... Ra8 {[%clk
0:00:36.3]} 39. Qc6 {[%clk 0:00:08.1]} 39... Qa5 {[%clk 0:00:30.7]} 40. Kb2
{[%clk 0:00:05.8]} 40... Qa3+ {[%clk 0:00:28]} 41. Kc3 {[%clk 0:00:05.4]} 41...
Qxc1+ {[%clk 0:00:27.3]} 0-1

[Event "*** Titled Tuesday Blitz"]
[Site "Chess.com"]
[Date "2021.02.09"]
[Round "5"]
[White "AlexSuv"]
[Black "Andrakhanova"]
[Result "1-0"]
[WhiteElo "2445"]
[BlackElo "2249"]
[TimeControl "180+1"]
[EndTime "10:57:19 PST"]
[Termination "AlexSuv won by resignation"]

1. d4 {[%clk 0:02:54.4]} 1... d5 {[%clk 0:02:59.3]} 2. c4 {[%clk 0:02:53.7]}
2... e6 {[%clk 0:02:59.5]} 3. Nc3 {[%clk 0:02:53.1]} 3... c6 {[%clk 0:02:59.6]}
4. e4 {[%clk 0:02:51.8]} 4... dxe4 {[%clk 0:02:59.3]} 5. Nxe4 {[%clk 0:02:52.7]}
5... Bb4+ {[%clk 0:02:59.3]} 6. Bd2 {[%clk 0:02:53.3]} 6... Qxd4 {[%clk
0:02:59.2]} 7. Bxb4 {[%clk 0:02:53.6]} 7... Qxe4+ {[%clk 0:02:59.4]} 8. Be2
{[%clk 0:02:54.3]} 8... Ne7 {[%clk 0:02:57.1]} 9. Nf3 {[%clk 0:02:20.3]} 9...
Nd7 {[%clk 0:02:52.7]} 10. O-O {[%clk 0:02:15.7]} 10... c5 {[%clk 0:02:52.6]}
11. Bc3 {[%clk 0:02:15.9]} 11... O-O {[%clk 0:02:52]} 12. Re1 {[%clk 0:02:09.2]}
12... Qc6 {[%clk 0:02:46.2]} 13. Bd3 {[%clk 0:02:04.5]} 13... Ng6 {[%clk
0:02:38.8]} 14. h4 {[%clk 0:02:00.3]} 14... Nf6 {[%clk 0:02:36.7]} 15. Qc1
{[%clk 0:01:40]} 15... e5 {[%clk 0:01:57.7]} 16. Nxe5 {[%clk 0:01:09.8]} 16...
Nxe5 {[%clk 0:01:50.7]} 17. Rxe5 {[%clk 0:01:10.1]} 17... h6 {[%clk 0:01:34.3]}
18. Qf4 {[%clk 0:00:58.4]} 18... Be6 {[%clk 0:00:53.6]} 19. Rae1 {[%clk
0:00:45.6]} 19... Rad8 {[%clk 0:00:52.3]} 20. Bc2 {[%clk 0:00:45.4]} 20... Rfe8
{[%clk 0:00:47.4]} 21. Qg3 {[%clk 0:00:32.9]} 21... Bxc4 {[%clk 0:00:43.6]} 22.
Rxe8+ {[%clk 0:00:27.8]} 22... Rxe8 {[%clk 0:00:44.5]} 23. Rd1 {[%clk
0:00:19.5]} 23... Be2 {[%clk 0:00:33.7]} 24. Rd6 {[%clk 0:00:17.4]} 24... Qxd6
{[%clk 0:00:16.3]} 25. Qxd6 {[%clk 0:00:15]} 25... Ng4 {[%clk 0:00:11.2]} 26.
Qxc5 {[%clk 0:00:10]} 26... b6 {[%clk 0:00:10.4]} 27. Qc6 {[%clk 0:00:08.7]}
27... Rd8 {[%clk 0:00:10.1]} 28. f3 {[%clk 0:00:06.6]} 28... Ne3 {[%clk
0:00:10]} 29. Be4 {[%clk 0:00:05.8]} 29... Rd1+ {[%clk 0:00:07.2]} 30. Kf2
{[%clk 0:00:06.3]} 30... Nc4 {[%clk 0:00:02.9]} 31. Qc8+ {[%clk 0:00:06.3]} 1-0

[Event "*** Titled Tuesday Blitz"]
[Site "Chess.com"]
[Date "2021.02.09"]
[Round "5"]
[White "wannabe2700"]
[Black "Federtiu"]
[Result "0-1"]
[WhiteElo "2759"]
[BlackElo "2606"]
[TimeControl "180+1"]
[EndTime "10:57:20 PST"]
[Termination "Federtiu won by resignation"]

1. b3 {[%clk 0:01:57.3]} 1... g6 {[%clk 0:02:42.3]} 2. Bb2 {[%clk 0:01:58.2]}
2... Nf6 {[%clk 0:02:39.8]} 3. Nf3 {[%clk 0:01:57.4]} 3... Bg7 {[%clk
0:02:38.7]} 4. g3 {[%clk 0:01:58.3]} 4... O-O {[%clk 0:02:38]} 5. Bg2 {[%clk
0:01:58]} 5... a5 {[%clk 0:02:36.6]} 6. O-O {[%clk 0:01:56]} 6... a4 {[%clk
0:02:36.9]} 7. c4 {[%clk 0:01:55.2]} 7... Nc6 {[%clk 0:02:34.8]} 8. d4 {[%clk
0:01:55.5]} 8... d5 {[%clk 0:02:18.5]} 9. cxd5 {[%clk 0:01:54]} 9... Nxd5 {[%clk
0:02:18]} 10. e4 {[%clk 0:01:52.6]} 10... Nb6 {[%clk 0:02:17.3]} 11. h3 {[%clk
0:01:46]} 11... Be6 {[%clk 0:01:55.8]} 12. Na3 {[%clk 0:01:39.9]} 12... axb3
{[%clk 0:01:38.3]} 13. axb3 {[%clk 0:01:40]} 13... Na5 {[%clk 0:01:38.8]} 14.
Nb5 {[%clk 0:01:12.8]} 14... Bxb3 {[%clk 0:01:34.9]} 15. Qd2 {[%clk 0:01:06.4]}
15... Nbc4 {[%clk 0:01:30.2]} 16. Qc3 {[%clk 0:01:05]} 16... c5 {[%clk
0:01:19.4]} 17. Rfc1 {[%clk 0:00:47.6]} 17... Qb6 {[%clk 0:01:16.7]} 18. Na3
{[%clk 0:00:44.1]} 18... cxd4 {[%clk 0:01:13.3]} 19. Nxd4 {[%clk 0:00:36.1]}
19... Nxb2 {[%clk 0:01:12.2]} 20. Nab5 {[%clk 0:00:34.6]} 20... Na4 {[%clk
0:00:49.5]} 21. Qb4 {[%clk 0:00:33.1]} 21... Bxd4 {[%clk 0:00:48.8]} 22. Qxd4
{[%clk 0:00:29]} 22... Qxb5 {[%clk 0:00:48.6]} 23. Rcb1 {[%clk 0:00:29.3]} 23...
Rfd8 {[%clk 0:00:47.8]} 24. Qe3 {[%clk 0:00:27.6]} 24... Nc5 {[%clk 0:00:42.2]}
25. Bf1 {[%clk 0:00:26.5]} 25... Qb4 {[%clk 0:00:42.5]} 26. h4 {[%clk
0:00:24.5]} 26... b6 {[%clk 0:00:42.6]} 27. h5 {[%clk 0:00:24.6]} 27... Qd4
{[%clk 0:00:43.2]} 28. Qg5 {[%clk 0:00:21.1]} 28... Nxe4 {[%clk 0:00:40.4]} 29.
Qf4 {[%clk 0:00:21.4]} 29... e5 {[%clk 0:00:36.7]} 30. Qf3 {[%clk 0:00:20.8]}
30... Nd2 {[%clk 0:00:36.9]} 31. Qf6 {[%clk 0:00:20.7]} 31... Nxb1 {[%clk
0:00:33.1]} 32. Rxb1 {[%clk 0:00:20]} 32... e4 {[%clk 0:00:32.8]} 33. Qf4 {[%clk
0:00:18.6]} 33... Bc4 {[%clk 0:00:23.2]} 34. Bxc4 {[%clk 0:00:17.4]} 34... Nxc4
{[%clk 0:00:22.3]} 35. h6 {[%clk 0:00:17.9]} 35... Ra1 {[%clk 0:00:22.1]} 36.
Rxa1 {[%clk 0:00:17.3]} 36... Qxa1+ {[%clk 0:00:23]} 37. Kg2 {[%clk 0:00:17.9]}
37... Qe5 {[%clk 0:00:23.6]} 38. Qc1 {[%clk 0:00:17.7]} 38... b5 {[%clk
0:00:22]} 39. Qb1 {[%clk 0:00:16.9]} 39... e3 {[%clk 0:00:21.7]} 40. f3 {[%clk
0:00:16.5]} 40... e2 {[%clk 0:00:21.7]} 41. Qe1 {[%clk 0:00:16.2]} 41... Rd1
{[%clk 0:00:20.9]} 42. Qxd1 {[%clk 0:00:15.5]} 42... exd1=Q {[%clk 0:00:20.7]}
0-1

[Event "*** Titled Tuesday Blitz"]
[Site "Chess.com"]
[Date "2021.02.09"]
[Round "5"]
[White "Gerodot71"]
[Black "davigator"]
[Result "0-1"]
[WhiteElo "2506"]
[BlackElo "2374"]
[TimeControl "180+1"]
[EndTime "10:57:21 PST"]
[Termination "davigator won by resignation"]

1. d4 {[%clk 0:02:09.3]} 1... Nf6 {[%clk 0:02:58.2]} 2. c4 {[%clk 0:02:08.6]}
2... e6 {[%clk 0:02:58]} 3. Nf3 {[%clk 0:02:07.7]} 3... Bb4+ {[%clk 0:02:56.6]}
4. Bd2 {[%clk 0:02:07.4]} 4... a5 {[%clk 0:02:56.3]} 5. g3 {[%clk 0:02:07]} 5...
b6 {[%clk 0:02:55.6]} 6. Bg2 {[%clk 0:02:04.9]} 6... Ba6 {[%clk 0:02:55.7]} 7.
Qc2 {[%clk 0:01:57.6]} 7... c6 {[%clk 0:02:55.1]} 8. O-O {[%clk 0:01:56.5]} 8...
O-O {[%clk 0:02:54.2]} 9. Bf4 {[%clk 0:01:52.5]} 9... Be7 {[%clk 0:02:50.9]} 10.
Nbd2 {[%clk 0:01:44.4]} 10... d5 {[%clk 0:02:50]} 11. Rfd1 {[%clk 0:01:41.8]}
11... Nbd7 {[%clk 0:02:49.2]} 12. Rac1 {[%clk 0:01:36.7]} 12... Rc8 {[%clk
0:02:48.6]} 13. Qb3 {[%clk 0:01:33.6]} 13... h6 {[%clk 0:02:44]} 14. Ne5 {[%clk
0:01:21.6]} 14... g5 {[%clk 0:02:41.1]} 15. Be3 {[%clk 0:01:18.8]} 15... Kg7
{[%clk 0:02:29.6]} 16. cxd5 {[%clk 0:01:16.8]} 16... cxd5 {[%clk 0:02:26.8]} 17.
Nc6 {[%clk 0:01:11.4]} 17... Qe8 {[%clk 0:02:24.3]} 18. Re1 {[%clk 0:00:57.6]}
18... Bd6 {[%clk 0:02:14.4]} 19. f3 {[%clk 0:00:50.6]} 19... Nb8 {[%clk
0:01:39.2]} 20. Ne5 {[%clk 0:00:49.2]} 20... Qd8 {[%clk 0:01:31.6]} 21. Bf2
{[%clk 0:00:46.1]} 21... Rxc1 {[%clk 0:01:29.7]} 22. Rxc1 {[%clk 0:00:45.6]}
22... Bxe2 {[%clk 0:01:30]} 23. Nc6 {[%clk 0:00:42.2]} 23... Nxc6 {[%clk
0:01:24.4]} 24. Rxc6 {[%clk 0:00:43.1]} 24... b5 {[%clk 0:01:22.5]} 25. h4
{[%clk 0:00:42.2]} 25... g4 {[%clk 0:01:17.7]} 26. Qe3 {[%clk 0:00:35.9]} 26...
Bxf3 {[%clk 0:01:07]} 27. Nxf3 {[%clk 0:00:36.8]} 27... gxf3 {[%clk 0:01:07.2]}
28. Bxf3 {[%clk 0:00:37]} 28... Qd7 {[%clk 0:01:04.2]} 29. Rc1 {[%clk
0:00:32.1]} 29... Rc8 {[%clk 0:01:02.8]} 30. Be1 {[%clk 0:00:31.4]} 30... Rxc1
{[%clk 0:01:01.4]} 31. Qxc1 {[%clk 0:00:32.3]} 31... Qc7 {[%clk 0:01:00.6]} 32.
Qe3 {[%clk 0:00:23.3]} 32... Bxg3 {[%clk 0:00:55.9]} 33. Bd2 {[%clk 0:00:22.8]}
33... Ng8 {[%clk 0:00:56]} 34. Be2 {[%clk 0:00:17.7]} 34... Bxh4 {[%clk
0:00:54.2]} 35. Kg2 {[%clk 0:00:17.1]} 35... Bg5 {[%clk 0:00:53.8]} 36. Qd3
{[%clk 0:00:15.8]} 36... Bxd2 {[%clk 0:00:53.3]} 37. Qxd2 {[%clk 0:00:16.7]}
37... b4 {[%clk 0:00:53.4]} 38. Bd3 {[%clk 0:00:15.7]} 38... Nf6 {[%clk
0:00:53]} 39. Qe3 {[%clk 0:00:14]} 39... Nh5 {[%clk 0:00:48.9]} 40. Bf1 {[%clk
0:00:10.7]} 40... Qf4 {[%clk 0:00:47.1]} 41. Qh3 {[%clk 0:00:07.8]} 41... Qg5+
{[%clk 0:00:40.7]} 42. Kf2 {[%clk 0:00:07]} 42... Nf6 {[%clk 0:00:39.2]} 43. Bg2
{[%clk 0:00:05.6]} 43... Qf4+ {[%clk 0:00:37.5]} 44. Ke2 {[%clk 0:00:04.3]}
44... Qxd4 {[%clk 0:00:37.1]} 45. Qg3+ {[%clk 0:00:04]} 45... Kh7 {[%clk
0:00:36.3]} 0-1

[Event "*** Titled Tuesday Blitz"]
[Site "Chess.com"]
[Date "2021.02.09"]
[Round "5"]
[White "garicradomir"]
[Black "albi1999"]
[Result "0-1"]
[WhiteElo "2226"]
[BlackElo "2627"]
[TimeControl "180+1"]
[EndTime "10:57:22 PST"]
[Termination "albi1999 won on time"]

1. e4 {[%clk 0:03:00.9]} 1... c5 {[%clk 0:02:55.9]} 2. Nf3 {[%clk 0:03:00.5]}
2... a6 {[%clk 0:02:56.3]} 3. c3 {[%clk 0:02:59.5]} 3... e6 {[%clk 0:02:55.9]}
4. d4 {[%clk 0:02:59.2]} 4... d5 {[%clk 0:02:55.7]} 5. exd5 {[%clk 0:02:58.7]}
5... exd5 {[%clk 0:02:54.7]} 6. Be3 {[%clk 0:02:58.4]} 6... cxd4 {[%clk
0:02:31.3]} 7. Bxd4 {[%clk 0:02:59.3]} 7... Nc6 {[%clk 0:02:31.2]} 8. Bd3 {[%clk
0:02:52.8]} 8... Nf6 {[%clk 0:02:30]} 9. O-O {[%clk 0:02:51.4]} 9... Be7 {[%clk
0:02:30.2]} 10. Re1 {[%clk 0:02:48.8]} 10... O-O {[%clk 0:02:28.9]} 11. Nbd2
{[%clk 0:02:47.8]} 11... Bg4 {[%clk 0:02:21.8]} 12. h3 {[%clk 0:02:47.5]} 12...
Bh5 {[%clk 0:02:20.8]} 13. Nf1 {[%clk 0:02:46]} 13... Nxd4 {[%clk 0:02:11.9]}
14. cxd4 {[%clk 0:02:46.9]} 14... Bd6 {[%clk 0:02:02.6]} 15. Ng3 {[%clk
0:02:31.4]} 15... Bg6 {[%clk 0:01:55.5]} 16. Bxg6 {[%clk 0:02:28.9]} 16... hxg6
{[%clk 0:01:56.4]} 17. Ne5 {[%clk 0:02:27.6]} 17... Qb6 {[%clk 0:01:54.6]} 18.
Qd2 {[%clk 0:02:21.5]} 18... Bb4 {[%clk 0:01:53.2]} 19. Qd3 {[%clk 0:01:57.2]}
19... Bxe1 {[%clk 0:01:52]} 20. Rxe1 {[%clk 0:01:58.1]} 20... Rac8 {[%clk
0:01:47.8]} 21. Re2 {[%clk 0:01:44.1]} 21... Rc1+ {[%clk 0:01:41.4]} 22. Kh2
{[%clk 0:01:43.7]} 22... Qc7 {[%clk 0:01:42.3]} 23. f4 {[%clk 0:01:34.6]} 23...
Ra1 {[%clk 0:01:31.3]} 24. f5 {[%clk 0:01:20.8]} 24... gxf5 {[%clk 0:01:29.4]}
25. Nxf5 {[%clk 0:01:17]} 25... Qc1 {[%clk 0:01:23.4]} 26. Ne7+ {[%clk
0:00:44.6]} 26... Kh8 {[%clk 0:01:18.4]} 27. N7g6+ {[%clk 0:00:37.1]} 27... fxg6
{[%clk 0:01:17.9]} 28. Nxg6+ {[%clk 0:00:38]} 28... Kg8 {[%clk 0:01:12.4]} 29.
Ne7+ {[%clk 0:00:37.9]} 29... Kh8 {[%clk 0:01:00.6]} 30. Ng6+ {[%clk 0:00:37.7]}
30... Kh7 {[%clk 0:00:48]} 31. Ne7+ {[%clk 0:00:35.6]} 31... Ne4 {[%clk
0:00:47.1]} 32. Rxe4 {[%clk 0:00:26.3]} 32... Qg1+ {[%clk 0:00:25.3]} 33. Kg3
{[%clk 0:00:25.6]} 33... Qf2+ {[%clk 0:00:24.2]} 34. Kh2 {[%clk 0:00:20.6]}
34... Qg1+ {[%clk 0:00:22.9]} 35. Kg3 {[%clk 0:00:20.7]} 35... Qf2+ {[%clk
0:00:23.8]} 36. Kh2 {[%clk 0:00:20.9]} 36... dxe4 {[%clk 0:00:23.6]} 37. Qxe4+
{[%clk 0:00:20.5]} 37... Kh8 {[%clk 0:00:23.2]} 38. Ng6+ {[%clk 0:00:14]} 38...
Kg8 {[%clk 0:00:23]} 39. Qe6+ {[%clk 0:00:09]} 39... Rf7 {[%clk 0:00:23.3]} 40.
Qe8+ {[%clk 0:00:07.1]} 40... Kh7 {[%clk 0:00:23.6]} 0-1